bitfinex-derivatives/quotes_SOLF0:USTF0_20250124
["timestamp","ask_amount","ask_price","bid_price","bid_amount"]
[1737685874543,0.02938361,250.22,250.17,0.03036548]
[1737685874741,15.94952294,250.24,250.03,120.91814599]
[1737685875044,0.028114,250.22,250.17,0.02781755]
[1737685875239,15.94952294,250.2,250.03,120.91814599]
[1737685875436,3.9992,250.09,250.03,2.5809]
[1737685875737,15.94952294,250.12,250.03,2.5809]
[1737685875937,15.94952294,250.08,249.96,110.66434852]
[1737685876142,3.9998,250.05,250.03,0.02701539]
[1737685876538,15.94952294,250.08,250.03,0.02701539]
[1737685876739,4.02863701,250.09,250.03,0.02701539]
[1737685876944,0.02943701,250.09,250.03,0.02701539]
[1737685877646,15.94952294,250.08,250.03,0.02701539]
[1737685877850,4.001,249.98,249.91,1.3574]
[1737685878053,15.94952294,250.04,249.91,1.3574]
[1737685878449,3.9996,250.06,249.96,4.0011]
[1737685878844,15.94952294,250.09,249.91,1.3574]
[1737685879245,0.02910387,250.04,249.98,0.02564069]
[1737685879752,0.02910387,250.04,249.98,4.02644069]
[1737685880146,0.02910387,250.04,249.98,0.02564069]
[1737685881949,0.02910387,250.04,250.0,4.0005]
[1737685882149,0.02910387,250.04,249.98,0.02564069]
[1737685883049,0.02910387,250.04,250.02,4.0002]
[1737685883253,15.94952294,250.17,249.99,2.6906]
[1737685883551,3.9983,250.15,250.06,3.9995]
[1737685883751,15.94952294,250.21,249.99,136.97736893]
[1737685884353,15.94952294,250.25,250.03,15.94952294]
[1737685884552,15.94952294,250.25,250.07,0.02616308]
[1737685884753,3.9968,250.24,250.12,3.9985]
[1737685884952,6.09804315,250.26,250.07,134.28676893]
[1737685885550,15.94952294,250.33,250.07,134.28676893]
[1737685885754,0.02510207,250.19,250.14,0.02692468]
[1737685885950,15.94952294,250.33,250.14,118.36417067]
[1737685886153,3.996,250.29,250.14,118.33724599]
[1737685886546,15.94952294,250.33,250.14,118.33724599]
[1737685886854,15.94952294,250.37,250.15,15.94952294]
[1737685887053,15.94952294,250.37,250.21,0.02734886]
[1737685887252,3.9954,250.33,250.23,3.9968]
[1737685887451,15.94952294,250.37,250.22,1.2556]
[1737685887650,15.94952294,250.37,250.25,0.02731215]
[1737685888153,19.94422294,250.37,250.26,3.9963]
[1737685888452,15.94952294,250.41,250.25,0.02731215]
[1737685888647,3.9944,250.39,250.29,3.9959]
[1737685888953,15.94952294,250.41,250.31,0.02732699]
[1737685889254,3.9936,250.44,250.34,3.9951]
[1737685889451,15.94952294,250.45,250.31,0.02732699]
[1737685889652,15.94952294,250.45,250.23,17.25362294]
[1737685889853,15.94952294,250.45,250.35,0.02760652]
[1737685890054,15.94952294,250.41,250.35,0.02760652]
[1737685890251,3.9946,250.38,250.35,0.02760652]
[1737685890554,15.94952294,250.41,250.34,0.02648296]
[1737685890956,15.94952294,250.41,250.23,119.64134599]
[1737685891152,15.94952294,250.45,250.35,0.02636687]
[1737685891351,15.94952294,250.45,250.24,1.331]
[1737685891657,15.94952294,250.45,250.37,0.02558168]
[1737685893059,3.9936,250.44,250.37,0.02558168]
[1737685893263,15.94952294,250.45,250.37,0.02558168]
[1737685894257,3.9944,250.39,250.37,0.02558168]
[1737685894559,15.94952294,250.51,250.37,0.02558168]
[1737685894957,15.94952294,250.51,250.38,3.9944]
[1737685895152,15.94952294,250.51,250.37,0.02558168]
[1737685896158,15.94952294,250.56,250.37,0.02558168]
[1737685896559,15.94952294,250.52,250.32,118.33724599]
[1737685896755,15.94952294,250.48,250.32,118.33724599]
[1737685897059,15.94952294,250.48,250.32,122.33264599]
[1737685897360,3.9935,250.45,250.35,3.9949]
[1737685897560,3.9935,250.45,250.32,118.33724599]
[1737685897757,15.94952294,250.52,250.32,118.33724599]
[1737685898060,0.02579835,250.41,250.36,0.02736502]
[1737685898364,3.993,250.48,250.32,118.33724599]
[1737685898556,0.02549579,250.41,250.36,0.02670828]
[1737685899357,0.02549579,250.41,250.38,3.9944]
[1737685899560,0.02549579,250.41,250.36,0.02670828]
[1737685899856,0.02549579,250.41,250.36,4.02150828]
[1737685900157,0.02549579,250.41,250.36,0.02670828]
[1737685901256,3.9945,250.38,250.36,0.02670828]
[1737685902353,15.94952294,250.4,250.24,119.66824599]
[1737685902663,15.94952294,250.4,250.24,1.331]
[1737685903357,3.9952,250.34,250.29,0.02621434]
[1737685903762,0.0293099,250.35,250.29,0.02621434]
[1737685903965,4.0243099,250.35,250.29,0.02621434]
[1737685905264,3.9951,250.34,250.29,0.02621434]
[1737685905861,3.9953,250.33,250.29,0.02621434]
[1737685906060,0.0293099,250.35,250.29,0.02621434]
[1737685906256,15.97883284,250.35,250.29,0.02621434]
[1737685906457,3.9956,250.31,250.29,0.02621434]
[1737685907765,15.97883284,250.35,250.29,0.02621434]
[1737685908465,0.0293099,250.35,250.29,0.02621434]
[1737685909264,0.0293099,250.35,250.29,4.02211434]
[1737685909463,0.0293099,250.35,250.3,1.2978]
[1737685909862,4.0243099,250.35,250.3,1.2978]
[1737685910270,0.0293099,250.35,250.3,1.2978]
[1737685911266,0.0293099,250.35,250.29,0.02621434]
[1737685912069,3.9958,250.3,250.29,0.02621434]
[1737685914770,0.0293099,250.35,250.29,0.02621434]
[1737685915870,0.0293099,250.35,250.3,3.9956]
[1737685916663,0.0293099,250.35,250.29,0.02621434]
[1737685916965,0.0293099,250.35,250.31,3.9956]
[1737685919167,0.0293099,250.35,250.34,3.9951]
[1737685919374,15.94952294,250.52,250.29,15.97573728]
[1737685919576,15.94952294,250.52,250.29,134.28676893]
[1737685919972,3.9933,250.46,250.4,3.9941]
[1737685920372,15.94952294,250.52,250.33,15.94952294]
[1737685920674,0.02319673,250.46,250.4,0.0253668]
[1737685922473,3.9935,250.45,250.4,0.0253668]
[1737685922675,0.02319673,250.46,250.4,0.0253668]
[1737685923076,0.02319673,250.46,250.4,4.0194668]
[1737685923277,0.02319673,250.46,250.4,0.0253668]
[1737685923577,15.94952294,250.61,250.46,3.9932]
[1737685923776,15.94952294,250.61,250.4,118.36261279]
[1737685924074,15.94952294,250.61,250.45,3.9933]
[1737685924075,3.9921,250.53,250.45,3.9933]
[1737685924271,15.94952294,250.61,250.4,118.33724599]
[1737685924469,15.94952294,250.65,250.42,15.94952294]
[1737685924670,3.991,250.6,250.52,3.9921]
[1737685924877,3.991,250.6,250.49,1.2961]
[1737685925077,3.991,250.6,250.53,0.03020464]
[1737685925274,15.94952294,250.65,250.53,0.03020464]
[1737685926381,3.9907,250.62,250.53,0.03020464]
[1737685926583,15.94952294,250.65,250.53,0.03020464]
[1737685927682,3.9908,250.61,250.53,4.02220464]
[1737685927875,15.94952294,250.65,250.53,4.02220464]
[1737685928285,15.94952294,250.65,250.53,0.03020464]
[1737685928478,3.9912,250.59,250.53,0.03020464]
[1737685929377,8.77933911,250.68,250.53,0.03020464]
[1737685929777,15.94952294,250.73,250.53,0.03020464]
[1737685930076,15.94952294,250.73,250.62,3.9906]
[1737685930277,15.94952294,250.73,250.6,0.02824792]
[1737685930680,15.94952294,250.69,250.6,0.02824792]
[1737685931085,15.94952294,250.69,250.5,135.52646893]
[1737685931378,15.94952294,250.69,250.62,0.02759504]
[1737685932088,3.9906,250.63,250.62,0.02759504]
[1737685933083,3.9899,250.67,250.62,0.02759504]
[1737685933279,15.94952294,250.69,250.62,0.02759504]
[1737685933681,3.9904,250.64,250.62,0.02759504]
[1737685935382,3.9902,250.66,250.62,0.02759504]
[1737685936387,15.94952294,250.69,250.62,0.02759504]
[1737685937483,3.9905,250.63,250.62,0.02759504]
[1737685938085,3.9901,250.66,250.62,0.02759504]
[1737685938792,3.9902,250.65,250.62,0.02759504]
[1737685938985,15.94952294,250.69,250.62,0.02759504]
[1737685939390,3.9905,250.63,250.62,0.02759504]
[1737685940289,3.9905,250.63,250.62,9.504e-05]
[1737685940585,15.94952294,250.65,250.5,1.2397]
[1737685940790,15.94952294,250.69,250.5,2.6124]
[1737685941584,0.02759504,250.62,250.57,0.02579086]
[1737685942394,0.02759504,250.62,250.58,3.9912]
[1737685942694,0.02759504,250.62,250.57,0.02579086]
[1737685943991,3.9909,250.61,250.57,0.02579086]
[1737685944195,0.02759504,250.62,250.57,0.02579086]
[1737685945995,3.9909,250.61,250.57,0.02579086]
[1737685946595,0.02759504,250.62,250.57,0.02579086]
[1737685947995,0.02759504,250.62,250.59,3.9911]
[1737685948897,9.94021247,250.72,250.57,0.02579086]
[1737685949093,9.94021247,250.72,250.55,9.94021247]
[1737685949294,3.9894,250.7,250.61,3.9908]
[1737685949500,9.94021247,250.76,250.59,9.94021247]
[1737685949700,9.94021247,250.76,250.6,1.2988]
[1737685950002,3.9887,250.75,250.65,0.02715442]
[1737685950299,9.94021247,250.8,250.64,9.94021247]
[1737685950494,9.94021247,250.8,250.69,3.9895]
[1737685951400,9.94021247,250.8,250.67,0.03054608]
[1737685951601,9.94021247,250.76,250.67,0.03054608]
[1737685951899,15.88968384,250.78,250.67,0.03054608]
[1737685953704,3.9891,250.72,250.67,0.03054608]
[1737685954000,15.88968384,250.78,250.67,0.03054608]
[1737685954400,21.97415882,250.82,250.68,3.9897]
[1737685954703,21.97415882,250.82,250.62,1.2747]
[1737685954903,3.9883,250.77,250.72,0.02988831]
[1737685955106,21.97415882,250.82,250.72,0.02988831]
[1737685955500,3.9883,250.77,250.72,0.02988831]
[1737685955706,21.97415882,250.82,250.72,0.02988831]
[1737685956811,3.9885,250.76,250.72,0.02988831]
[1737685957810,15.88968384,250.77,250.72,0.02988831]
[1737685958407,15.88968384,250.77,250.62,1.2747]
[1737685959615,0.02947788,250.72,250.67,0.02892805]
[1737685964610,4.01857788,250.72,250.67,0.02892805]
[1737685966211,0.02947788,250.72,250.67,0.02892805]
[1737685966815,0.02947788,250.72,250.68,3.9896]
[1737685967015,0.02947788,250.72,250.67,0.02892805]
[1737685969019,0.02947788,250.72,250.7,3.9893]
[1737685969213,0.02947788,250.72,250.67,0.02892805]
[1737685969923,0.02947788,250.72,250.68,3.9896]
[1737685970220,0.02947788,250.72,250.67,0.02892805]
[1737685970719,0.02947788,250.72,250.67,4.01872805]
[1737685971422,0.02947788,250.72,250.67,0.02892805]
[1737685971822,0.02947788,250.72,250.67,9.95305865]
[1737685972619,6.08447498,250.82,250.67,128.29030464]
[1737685973019,9.9241306,250.85,250.67,128.29030464]
[1737685973221,9.9241306,250.89,250.71,9.9241306]
[1737685973418,9.9241306,250.89,250.72,1.3308]
[1737685973725,3.9877,250.81,250.78,0.02623476]
[1737685976717,3.9868,250.87,250.78,118.36348075]
[1737685976923,9.9241306,250.93,250.78,118.36348075]
[1737685977217,3.9864,250.89,250.82,3.9875]
[1737685977419,9.9241306,250.93,250.83,0.02945792]
[1737685977821,3.9862,250.9,250.83,0.02945792]
[1737685978019,9.9241306,250.93,250.83,0.02945792]
[1737685978623,3.9862,250.9,250.83,0.02945792]
[1737685978826,9.9241306,250.93,250.83,0.02945792]
[1737685979922,3.9868,250.86,250.83,0.02945792]
[1737685980823,9.9241306,250.93,250.83,0.02945792]
[1737685981018,3.987,250.85,250.83,0.02945792]
[1737685981920,9.9241306,250.93,250.83,0.02945792]
[1737685982219,8.51188123,250.99,250.83,9.95358852]
[1737685982423,8.51188123,250.99,250.84,2.7211]
[1737685982628,3.9857,250.94,250.89,3.9863]
[1737685982921,8.51188123,250.99,250.88,0.02655254]
[1737685983223,3.9852,250.97,250.91,3.9859]
[1737685984119,12.49668123,250.99,250.91,3.9859]
[1737685984317,9.9241306,251.05,250.94,3.9855]
[1737685984528,3.9847,251.0,250.89,1.2706]
[1737685984824,3.9847,251.0,250.97,0.02591923]
[1737685986025,9.9241306,251.09,250.97,0.02591923]
[1737685986425,3.9838,251.05,250.97,0.02591923]
[1737685987233,9.9241306,251.05,250.97,0.02591923]
[1737685987436,9.9241306,251.01,250.97,0.02591923]
[1737685987821,3.9848,250.99,250.97,0.02591923]
[1737685989228,9.95004983,251.01,250.89,118.33724599]
[1737685989621,3.985,250.98,250.89,118.33724599]
[1737685989819,9.95004983,251.01,250.89,118.33724599]
[1737685990022,9.9241306,250.97,250.89,118.33724599]
[1737685990329,9.9241306,250.97,250.85,1.2437]
[1737685990330,9.9241306,250.97,250.92,0.02765164]
[1737685990526,0.02591923,250.96,250.92,0.02765164]
[1737685991130,3.9857,250.94,250.92,0.02765164]
[1737685991927,9.9241306,250.95,250.78,2.6665]
[1737685992121,3.9867,250.88,250.78,121.00374599]
[1737685992525,9.9241306,250.91,250.78,121.00374599]
[1737685993131,3.9873,250.83,250.82,0.0262225]
[1737685993529,0.02754721,250.87,250.82,0.0262225]
[1737685993830,4.01434721,250.87,250.82,0.0262225]
[1737685994226,3.9869,250.86,250.82,0.0262225]
[1737685994430,0.02754721,250.87,250.82,0.0262225]
[1737685996335,9.95167781,250.87,250.82,0.0262225]
[1737685997224,3.9873,250.83,250.82,0.0262225]
[1737685997429,9.95167781,250.87,250.82,0.0262225]
[1737685997430,0.02754721,250.87,250.82,0.0262225]
[1737685997630,3.987,250.85,250.82,0.0262225]
[1737685997835,0.02754721,250.87,250.82,0.0262225]
[1737685998333,3.9871,250.85,250.82,0.0262225]
[1737685998730,0.02754721,250.87,250.82,0.0262225]
[1737685998932,3.9872,250.84,250.82,0.0262225]
[1737686001338,0.02754721,250.87,250.82,0.0262225]
[1737686002633,3.9873,250.83,250.82,0.0262225]
[1737686002838,9.9241306,250.83,250.71,2.5915]
[1737686003937,3.9881,250.78,250.71,2.5915]
[1737686004146,0.02558362,250.8,250.74,0.02774471]
[1737686004440,0.02558362,250.8,250.77,3.9882]
[1737686004945,0.02558362,250.8,250.75,1.2746]
[1737686005140,3.9864,250.89,250.75,1.2746]
[1737686005443,9.9241306,250.91,250.77,9.9241306]
[1737686005642,9.9241306,250.91,250.77,128.26137659]
[1737686006342,0.02951343,250.87,250.81,9.95184458]
[1737686006543,9.9241306,250.95,250.82,1.299]
[1737686006747,0.02592534,250.87,250.82,1.299]
[1737686007040,0.02592534,250.87,250.85,3.9869]
[1737686007345,9.9241306,250.99,250.85,118.33724599]
[1737686007844,3.9855,250.95,250.87,3.9865]
[1737686008340,0.02535795,250.94,250.88,0.02874256]
[1737686008643,0.02535795,250.94,250.91,3.9859]
[1737686010339,0.02535795,250.94,250.89,1.3595]
[1737686011644,0.02535795,250.94,250.91,3.986]
[1737686012541,0.02535795,250.94,250.92,3.9858]
[1737686012748,9.9241306,251.03,250.89,11.2836306]
[1737686012949,9.9241306,251.07,250.89,11.2836306]
[1737686013147,9.9241306,251.07,250.98,3.9849]
[1737686013343,3.9838,251.06,250.89,129.62087659]
[1737686013551,9.9241306,251.07,250.89,129.62087659]
[1737686013846,3.9839,251.05,250.89,129.62087659]
[1737686014051,3.9839,251.05,250.95,0.0282837]
[1737686014350,3.9839,251.05,250.97,3.9849]
[1737686014654,3.9842,251.03,250.95,118.36552969]
[1737686015546,3.9844,251.01,250.95,122.35082969]
[1737686016350,9.9241306,251.07,250.95,118.36552969]
[1737686016544,3.9842,251.03,250.97,3.9851]
[1737686016741,9.9241306,251.11,250.95,118.36552969]
[1737686016946,9.9241306,251.11,250.96,1.331]
[1737686017249,9.9241306,251.11,251.0,0.02636051]
[1737686018151,3.9836,251.07,251.01,3.9844]
[1737686018351,9.9241306,251.11,251.0,0.02636051]
[1737686018753,3.9843,251.02,251.0,0.02636051]
[1737686019150,9.9241306,251.11,251.0,0.02636051]
[1737686019353,3.9841,251.04,251.0,0.02636051]
[1737686019547,9.9241306,251.11,251.0,0.02636051]
[1737686020545,3.9844,251.01,251.0,0.02636051]
[1737686020748,3.9844,251.01,250.96,1.331]
[1737686020954,3.9844,251.01,250.98,0.02530076]
[1737686021757,3.9846,251.0,250.98,0.02530076]
[1737686022453,3.9848,250.99,250.98,0.02530076]
[1737686024157,3.9855,250.95,250.9,1.3008]
[1737686025458,4.01300823,250.95,250.9,1.3300196]
[1737686026056,0.02750823,250.95,250.92,3.9858]
[1737686026456,0.02750823,250.95,250.9,1.3300196]
[1737686027359,0.02750823,250.95,250.93,3.9856]
[1737686030057,3.9858,250.93,250.9,1.3300196]
[1737686030264,0.02750823,250.95,250.9,1.3300196]
[1737686030464,0.02750823,250.95,250.9,0.0292196]
[1737686031967,4.01310823,250.95,250.9,0.0292196]
[1737686032460,0.02750823,250.95,250.9,0.0292196]
[1737686032666,9.9241306,250.94,250.9,0.0292196]
[1737686033659,3.986,250.91,250.9,0.0292196]
[1737686033862,9.9241306,250.94,250.78,1.3199]
[1737686034065,9.9241306,250.89,250.77,110.66434852]
[1737686034266,3.9872,250.84,250.77,110.66434852]
[1737686034462,9.9241306,250.89,250.74,2.7327]
[1737686034765,9.9241306,250.89,250.75,1.3187]
[1737686034974,0.02738985,250.84,250.79,0.02764206]
[1737686035563,0.02738985,250.84,250.82,3.9874]
[1737686036664,0.02738985,250.84,250.8,3.9877]
[1737686036868,0.02738985,250.84,250.79,0.02764206]
[1737686037767,3.9874,250.83,250.79,0.02764206]
[1737686037970,0.02738985,250.84,250.79,0.02764206]
[1737686038367,9.9241306,250.98,250.82,9.9241306]
[1737686039071,3.9855,250.95,250.86,3.9867]
[1737686039267,9.9241306,250.98,250.82,9.9241306]
[1737686039469,0.02763221,250.93,250.88,0.02986817]
[1737686040372,0.02763221,250.93,250.89,3.9863]
[1737686040575,0.02763221,250.93,250.88,0.02986817]
[1737686040871,0.02763221,250.93,250.91,3.9859]
[1737686042869,0.02763221,250.93,250.89,3.9862]
[1737686043071,0.02763221,250.93,250.88,0.02986817]
[1737686044174,4.01333221,250.93,250.88,0.02986817]
[1737686044669,0.02763221,250.93,250.88,0.02986817]
[1737686045273,0.02763221,250.93,250.92,3.9859]
[1737686046174,0.02763221,250.93,250.88,4.01626817]
[1737686047172,4.01333221,250.93,250.88,4.01626817]
[1737686047367,4.01333221,250.93,250.89,3.9863]
[1737686047774,0.02763221,250.93,250.89,3.9863]
[1737686050573,0.02763221,250.93,250.88,0.02986817]
[1737686051373,4.01343221,250.93,250.88,4.01636817]
[1737686051582,0.02763221,250.93,250.88,0.02986817]
[1737686051879,9.95176281,250.93,250.88,0.02986817]
[1737686052572,3.9863,250.89,250.88,0.02986817]
[1737686055679,9.95176281,250.93,250.88,0.02986817]
[1737686055680,3.9862,250.91,250.88,0.02986817]
[1737686055885,9.95176281,250.93,250.88,0.02986817]
[1737686056187,3.9862,250.9,250.88,0.02986817]
[1737686056390,9.95176281,250.93,250.88,0.02986817]
[1737686056789,3.9863,250.89,250.88,0.02986817]
[1737686058991,3.9862,250.91,250.88,0.02986817]
[1737686061089,0.02763221,250.93,250.88,0.02986817]
[1737686061681,3.9861,250.91,250.88,0.02986817]
[1737686062186,0.02763221,250.93,250.88,0.02986817]
[1737686062883,3.9859,250.92,250.88,0.02986817]
[1737686063984,0.02763221,250.93,250.88,0.02986817]
[1737686064188,9.95176281,250.93,250.88,6.817e-05]
[1737686064386,9.9241306,250.89,250.88,6.817e-05]
[1737686064891,13.9104306,250.89,250.88,6.817e-05]
[1737686065587,9.95176281,250.93,250.88,6.817e-05]
[1737686065986,0.02763221,250.93,250.88,6.817e-05]
[1737686066188,3.9863,250.89,250.88,6.817e-05]
[1737686069593,3.9862,250.91,250.88,6.817e-05]
[1737686069794,0.02763221,250.93,250.88,6.817e-05]
[1737686072191,3.9863,250.89,250.88,6.817e-05]
[1737686072998,0.02763221,250.93,250.88,6.817e-05]
[1737686073199,4.01353221,250.93,250.88,6.817e-05]
[1737686075301,0.02763221,250.93,250.88,6.817e-05]
[1737686075500,3.9859,250.92,250.88,6.817e-05]
[1737686077402,0.02763221,250.93,250.88,6.817e-05]
[1737686078901,9.9241306,251.04,250.88,6.817e-05]
[1737686079198,9.9241306,251.04,250.85,9.9241306]
[1737686079199,9.9241306,251.04,250.89,9.9241306]
[1737686079406,9.9241306,251.04,250.9,2.5895]
[1737686079896,3.9844,251.01,250.9,2.5895]
[1737686080101,0.02902367,251.0,250.94,0.02607112]
[1737686080301,9.95315427,251.0,250.94,0.02607112]
[1737686081210,3.9854,250.95,250.94,0.02607112]
[1737686084709,9.9241306,250.96,250.83,113.28594852]
[1737686085004,9.9241306,250.86,250.83,110.66434852]
[1737686085204,3.9871,250.85,250.83,104.24964852]
[1737686086713,4.01384207,250.87,250.83,104.24964852]
[1737686086911,0.02714207,250.87,250.83,104.24964852]
[1737686087414,0.02714207,250.87,250.81,0.02523104]
[1737686089714,3.9874,250.83,250.81,0.02523104]
[1737686089915,0.02714207,250.87,250.81,0.02523104]
[1737686090313,3.9873,250.84,250.81,0.02523104]
[1737686090816,0.02714207,250.87,250.81,0.02523104]
[1737686093115,4.01384207,250.87,250.81,0.02523104]
[1737686093716,3.9869,250.86,250.81,0.02523104]
[1737686094112,0.02714207,250.87,250.81,0.02523104]
[1737686094616,3.9875,250.82,250.81,0.02523104]
[1737686095318,3.9875,250.82,250.81,3.104e-05]
[1737686099715,13.9113306,250.84,250.81,3.104e-05]
[1737686100117,3.9872,250.84,250.81,3.104e-05]
[1737686100323,0.02714207,250.87,250.82,3.9874]
[1737686100620,0.02714207,250.87,250.81,3.104e-05]
[1737686101223,4.01384207,250.87,250.81,3.104e-05]
[1737686101421,0.02714207,250.87,250.81,3.104e-05]
[1737686102722,0.02714207,250.87,250.83,3.9872]
[1737686103424,0.02714207,250.87,250.82,2.7164]
[1737686105330,3.9869,250.86,250.82,2.7164]
[1737686106227,0.02714207,250.87,250.82,2.7164]
[1737686106429,3.987,250.85,250.82,2.7164]
[1737686106723,0.02714207,250.87,250.81,3.104e-05]
[1737686106929,3.9875,250.82,250.81,3.104e-05]
[1737686108726,3.9875,250.82,250.75,2.5554]
[1737686108727,3.9887,250.74,250.73,109.64247723]
[1737686109631,3.9889,250.73,250.69,109.64247723]
[1737686110432,3.9891,250.72,250.69,109.64247723]
[1737686110732,9.9241306,250.73,250.69,109.64247723]
[1737686110932,9.9241306,250.73,250.69,29.16830179]
[1737686111128,9.9241306,250.73,250.69,21.91560179]
[1737686111327,9.9241306,250.73,250.69,15.77300179]
[1737686111528,3.9893,250.71,250.69,9.49000179]
[1737686113146,3.9895,250.69,250.68,0.02914837]
[1737686113336,9.9241306,250.69,250.57,3.8115]
[1737686113532,9.9241306,250.64,250.57,2.561]
[1737686114140,3.9907,250.62,250.57,2.561]
[1737686114839,4.01988012,250.62,250.57,2.59115454]
[1737686115142,0.02918012,250.62,250.57,2.59115454]
[1737686116345,9.9241306,250.6,250.57,0.03015454]
[1737686116933,3.9911,250.59,250.57,0.03015454]
[1737686117841,0.02918012,250.62,250.58,3.9912]
[1737686118042,0.02918012,250.62,250.48,9.9241306]
[1737686119042,0.02918012,250.62,250.58,3.9912]
[1737686119441,0.02918012,250.62,250.6,3.9909]
[1737686120739,0.02918012,250.62,250.57,0.02551807]
[1737686120740,13.9132306,250.72,250.57,0.02551807]
[1737686121141,9.9241306,250.72,250.56,9.9241306]
[1737686121843,0.02896077,250.67,250.63,3.9904]
[1737686124347,0.02896077,250.67,250.65,3.9901]
[1737686126346,0.02896077,250.67,250.63,3.9904]
[1737686126544,9.95309137,250.67,250.61,0.02562726]
[1737686126736,3.9905,250.63,250.61,0.02562726]
[1737686127146,9.95309137,250.67,250.61,0.02562726]
[1737686127346,0.02896077,250.67,250.62,3.9906]
[1737686127546,0.02896077,250.67,250.61,0.02562726]
[1737686127950,0.02896077,250.67,250.62,3.9906]
[1737686128150,0.02896077,250.67,250.61,0.02562726]
[1737686129043,9.9241306,250.79,250.65,9.9241306]
[1737686129450,9.9241306,250.83,250.65,9.9241306]
[1737686129950,9.9241306,250.83,250.69,3.9894]
[1737686130151,0.02821455,250.77,250.71,0.02680686]
[1737686130847,9.9241306,250.75,250.71,0.02680686]
[1737686131052,9.9241306,250.75,250.61,118.33724599]
[1737686131254,9.95234515,250.77,250.61,118.33724599]
[1737686131255,9.9241306,250.7,250.61,118.33724599]
[1737686131560,9.9241306,250.74,250.61,118.33724599]
[1737686132053,3.9891,250.72,250.63,3.9904]
[1737686132253,0.02857517,250.7,250.65,0.02909872]
[1737686132454,0.02857517,250.7,250.66,3.9899]
[1737686132853,0.02857517,250.7,250.67,1.3501]
[1737686134457,3.9884,250.77,250.67,1.3501]
[1737686134657,9.9241306,250.78,250.67,1.3501]
[1737686135559,3.9888,250.74,250.67,5.3398]
[1737686135754,0.02750855,250.75,250.67,1.3501]
[1737686136864,3.9891,250.72,250.67,1.3501]
[1737686137167,9.9241306,250.74,250.65,0.02909872]
[1737686137962,3.99,250.67,250.65,0.02909872]
[1737686139259,9.9241306,250.66,250.65,0.02909872]
[1737686139459,9.9241306,250.66,250.65,9.872e-05]
[1737686139659,9.9241306,250.66,250.52,120.98354599]
[1737686140165,9.9241306,250.66,250.53,1.21948694]
[1737686140463,9.9241306,250.7,250.59,3.9911]
[1737686140962,0.02749601,250.67,250.62,0.02929762]
[1737686142765,4.01739601,250.67,250.62,0.02929762]
[1737686143065,0.02749601,250.67,250.62,0.02929762]
[1737686143766,3.9902,250.65,250.62,0.02929762]
[1737686144264,3.9903,250.64,250.62,0.02929762]
[1737686144767,9.9241306,250.66,250.62,0.02929762]
[1737686145566,3.9905,250.63,250.62,0.02929762]
[1737686145767,9.9241306,250.66,250.62,0.02929762]
[1737686146370,0.02749601,250.67,250.62,0.02929762]
[1737686148666,3.9901,250.66,250.62,0.02929762]
[1737686149272,4.01729601,250.67,250.62,0.02929762]
[1737686149472,0.02749601,250.67,250.62,0.02929762]
[1737686150173,0.02749601,250.67,250.62,4.01979762]
[1737686150374,0.02749601,250.67,250.62,0.02929762]
[1737686152176,4.01739601,250.67,250.62,0.02929762]
[1737686152369,0.02749601,250.67,250.62,0.02929762]
[1737686152775,0.02749601,250.67,250.63,3.9905]
[1737686154577,0.02749601,250.67,250.62,0.02929762]
[1737686156773,9.9241306,250.74,250.62,0.02929762]
[1737686157074,9.9241306,250.78,250.62,0.02929762]
[1737686157281,3.9883,250.77,250.71,3.9892]
[1737686157583,3.9883,250.77,250.59,128.26137659]
[1737686157880,9.9241306,250.78,250.59,128.26137659]
[1737686158176,0.02873213,250.71,250.65,0.02646382]
[1737686158777,9.9241306,250.78,250.65,0.02646382]
[1737686158973,3.9882,250.77,250.68,3.9895]
[1737686159178,9.9241306,250.78,250.64,1.3199]
[1737686159578,9.9241306,250.82,250.64,119.65714599]
[1737686159782,9.9241306,250.82,250.68,9.9241306]
[1737686159981,0.02592614,250.76,250.7,0.02768553]
[1737686160281,0.02592614,250.76,250.68,9.9241306]
[1737686160282,3.9871,250.85,250.68,9.9241306]
[1737686160494,0.02957779,250.76,250.7,0.02829654]
[1737686160686,9.9241306,250.86,250.7,118.36554253]
[1737686160875,9.9241306,250.86,250.7,118.33724599]
[1737686161682,3.9876,250.82,250.74,3.9887]
[1737686161875,0.02621342,250.81,250.75,0.03056748]
[1737686162079,0.02621342,250.81,250.74,3.9887]
[1737686162080,0.02621342,250.81,250.74,3.98338254]
[1737686163181,0.02621342,250.81,250.71,1.3441]
[1737686163182,0.02621342,250.81,250.79,3.9879]
[1737686163487,5.52879887,251.0,250.75,0.02728923]
[1737686163488,9.9241306,250.9,250.75,0.02728923]
[1737686163782,9.9241306,250.94,250.77,9.9241306]
[1737686163976,9.9241306,250.94,250.78,1.3066]
[1737686164385,3.9867,250.87,250.81,3.9875]